Cogmind - Beta 16 @@@ ROGUE MODE // 2026.01.15 @ 18:23:10 Player: ILikeVoltron Result: Destroyed by D-53 Grenadier with Mini Grenade Launcher Performance ------------- Evolutions (1) 500 Regions Visited (5) 1000 Robots Destroyed (84) 420 Value Destroyed (1518) 1518 Prototype IDs (3) 60 Alien Tech Used (1) 200 Bonus (673) 673 TOTAL SCORE: 4371 Bonus ------- Follower Combat Kills 310 Met Imprinter 300 Was Imprinted 300 Friendly Fire -237 Cogmind --------- Core Integrity 0/400 Matter 180/300 Energy 254/280 System Corruption 0% Temperature Cool (0) Movement Rolling (185) Ox7 Location -6/Proximity Caves Parts ------- > --- POWER (1) -------- Heavy Ion Engine > --- PROPULSION (3) --- Armored Wheel > --- UTILITY (3) ------ Huge Storage Unit Tactical Coordination Suite Utility Shielding > --- WEAPON (2) ------- Mini Grenade Launcher Mini Grenade Launcher > --- INVENTORY (25) --- Light Nuclear Core Armored Wheel Armored Wheel Armored Wheel Improved Heat Sink Medium Matter Pod (100) Improved Terrain Scanner Improved Terrain Scan Processor Improved Targeting Computer Core Shielding Power Shielding Light Armor Plating Hardened Light Armor Plating Hacking Suite Beamcaster Heavy Beamcaster Light EM Pulse Cannon Light Assault Rifle Improved Assault Rifle Heavy Battle Rifle RU-N14's Throwing Claymores (5) Makeshift Sword Peak State ------------ > --- POWER ------------ Heavy Ion Engine > --- PROPULSION ------- Armored Wheel Armored Wheel Armored Wheel > --- UTILITY ---------- Huge Storage Unit Tactical Coordination Suite Utility Shielding > --- WEAPON ----------- RU-N14's Throwing Claymores Makeshift Sword > --- INVENTORY -------- Light Nuclear Core Armored Wheel Armored Wheel Armored Wheel Improved Heat Sink Medium Matter Pod Improved Terrain Scanner Improved Terrain Scan Processor Improved Targeting Computer Core Shielding Power Shielding Light Armor Plating Hardened Light Armor Plating Hacking Suite Beamcaster Heavy Beamcaster Light EM Pulse Cannon Light Assault Rifle Improved Assault Rifle Heavy Battle Rifle Mini Grenade Launcher Mini Grenade Launcher RU-N14's Throwing Claymores RU-N14's Throwing Claymores [Rating: 33] Favorites ----------- Power Heavy Ion Engine Engine Heavy Ion Engine Propulsion Armored Wheel Treads Light Treads Leg Aluminum Leg Wheel Armored Wheel Utility Huge Storage Unit Device Tactical Coordination Suite Storage Huge Storage Unit Protection Utility Shielding Weapon Light Assault Rifle Energy Gun Medium Laser Energy Cannon Light EM Pulse Cannon Ballistic Gun Light Assault Rifle Ballistic Cannon Light Cannon Launcher Mini Grenade Launcher Special Weapon RU-N14's Throwing Claymores Impact Weapon Hammer Slashing Weapon Makeshift Sword Special Melee Weapon Datajack Build | -11 -10 -9 -9 -7 -6 ------- Run | Yrd Mat Mat Min Zio Pro Slots Evolved 2 | . . 2 . . . Power . | . . . . . . Propulsion 1 | . . 1 . . . Utility 1 | . . 1 . . . Weapon . | . . . . . . Parts Attached 41 | 2 11 21 2 2 3 Power 3 | . 2 1 . . . Engine 3 | . 2 1 . . . Core . | . . . . . . Reactor . | . . . . . . Propulsion 11 | . 2 8 1 . . Treads 3 | . . 3 . . . Leg 2 | . 2 . . . . Wheel 6 | . . 5 1 . . Hover . | . . . . . . Flight . | . . . . . . Utility 10 | 2 2 5 . . 1 Device 4 | 2 1 . . . 1 Storage 2 | . . 2 . . . Processor . | . . . . . . Hackware . | . . . . . . Protection 4 | . 1 3 . . . Artifact . | . . . . . . Weapon 17 | . 5 7 1 2 2 Energy Gun 2 | . 1 . . . 1 Energy Cannon 1 | . . . 1 . . Ballistic Gun 5 | . 2 3 . . . Ballistic Cannon 2 | . . 2 . . . Launcher 2 | . . 2 . . . Special Weapon 2 | . . . . 1 1 Impact Weapon 1 | . 1 . . . . Slashing Weapon 1 | . . . . 1 . Piercing Weapon . | . . . . . . Special Melee Weapon 1 | . 1 . . . . Unidentified Prototypes 4 | . . 2 . 1 1 Parts Lost 13 | . 3 7 1 . 2 Power 3 | . 2 1 . . . Propulsion 5 | . . 2 1 . 2 Utility 2 | . . 2 . . . Weapon 3 | . 1 2 . . . Highest Loss Streak 4 | . 2 4 1 . 2 To Critical Strikes . | . . . . . . Average Backups 17 | 7 7 17 24 24 23 Power . | 1 . . . 1 1 Propulsion 1 | 3 . . 3 3 3 Utility 8 | . 6 10 10 10 10 Weapon 6 | 1 1 6 10 9 9 Tool/Special . | . . . . . . Unused Backups 36 | 8 6 2 . 5 15 Power 4 | 1 2 . . . 1 Propulsion 9 | 4 2 . . . 3 Utility 12 | 1 1 2 . 1 7 Weapon 11 | 2 1 . . 4 4 Tool/Special . | . . . . . . Average Slot Usage (%) 96 | . 98 88 100 100 99 Engine 10 | . 13 7 11 11 11 Treads 3 | . . 12 . . . Leg 7 | . 28 . . . . Wheel 20 | . . 18 33 33 33 Device 2 | . 4 1 . . 8 Storage 11 | . 14 11 11 11 11 Protection 16 | . 9 17 22 22 13 Energy Cannon 1 | . . . 1 4 . Ballistic Gun 8 | . 22 4 16 . . Ballistic Cannon 3 | . . 11 . . . Special Weapon 2 | . . . . 6 8 Impact Weapon 2 | . 2 2 4 3 . Slashing Weapon 3 | . . . . 7 10 Peak Build Rating 33 | 8 9 21 21 31 33 Average Rating 17 | 6 8 13 20 27 31 On Entrance 15 | 6 8 7 21 20 31 Avg Prop Armor Cover (%) 18 | . . 18 . . . Naked Turns . | . . . . . . Heaviest Build 104 | 12 13 98 100 104 104 Greatest Support 36 | 20 20 36 36 36 36 Greatest Overweight (x) 7 | . . 7 2 2 2 Average Overweight (x) 1 | . . 4 2 2 2 Largest Inventory Capacity 25 | 8 8 25 25 25 25 Average Capacity 18 | 8 8 21 25 25 25 Most Carried 25 | 8 8 25 25 25 25 Average Carried 17 | 7 7 18 24 24 23 Final Capacity 25 | 8 8 25 25 25 25 Final Carried 25 | 8 8 25 24 25 22 Class Distribution -------------------- 100% | Mutant Dominant Class ---------------- Mutant | -10/Materials Mutant | -9/Materials Mutant | -9/Mines Mutant | -7/Zion Mutant | -6/Proximity Caves Resources | -11 -10 -9 -9 -7 -6 ----------- Run | Yrd Mat Mat Min Zio Pro Matter Collected 1482 | 350 396 544 132 20 40 Remotely 60 | 60 . . . . . Salvage Created 2260 | 393 615 799 167 . 286 Parts 145 | 29 41 67 4 . 4 Haulers Intercepted 5 | . 2 2 . . 1 Recyclers Shooed 2 | . . 2 . . . Parts Field Recycled . | . . . . . . Retrieved Matter . | . . . . . . Parts Self-Destructed 7 | . . . . . 7 Prevented 4 | . . . . . 4 Parts Restored . | . . . . . . Kills | -11 -10 -9 -9 -7 -6 ------- Run | Yrd Mat Mat Min Zio Pro Combat Hostiles Destroyed 54 | . 13 27 7 . 7 Melee 8 | . 3 3 2 . . Guns 14 | . 10 1 3 . . Cannons 18 | . . 16 1 . 1 AOE 9 | . . 3 . . 6 Classes Destroyed 13 | 3 6 2 1 . 1 Worker 6 | 4 . 2 . . . Builder 2 | . 1 1 . . . Tunneler 11 | 9 . 2 . . . Hauler 5 | . 2 2 . . 1 Recycler 3 | 1 1 1 . . . Mechanic 1 | . 1 . . . . Operator 3 | . 1 2 . . . Drone 1 | . . . . . 1 Watcher 3 | . . 3 . . . Swarmer 26 | . 8 16 1 . 1 Grunt 21 | . 5 8 2 . 6 Sentry 3 | . . 3 . . . Assembled 4 | . . . 4 . . Best Kill Streak 11 | 4 5 11 4 . 5 Combat Bots Only 8 | . 3 8 4 . 4 Max Kills in Single Turn 4 | 2 2 3 1 . 4 Gunslinging 1 | . 1 . . . . Exploded 3 | . . 1 . . 3 Melee 1 | . 1 1 1 . . Uniques/NPCs Destroyed . | . . . . . . Combat | -11 -10 -9 -9 -7 -6 -------- Run | Yrd Mat Mat Min Zio Pro Hostile Shots Fired 326 | . 78 164 35 . 49 Missed 93 | . 17 51 6 . 19 Hits 233 | . 61 113 29 . 30 Melee 1 | . . . 1 . . Projectile 232 | . 61 113 28 . 30 AOE 7 | . . . . . 7 Critical Strikes 3 | . 1 2 . . . Damage Taken 2941 | . 665 1181 402 . 693 Core 573 | . 168 146 116 . 143 Absorbed by Shields . | . . . . . . Redirected to Shielding 94 | . 21 26 8 . 39 Regen/Repaired (Parts) 5 | . . . . 5 . Core Remaining (%) 66 | 100 32 . . . . Volleys Fired 159 | 25 46 58 9 . 21 Largest 2 | 2 2 2 2 . 1 Hottest 81 | 40 70 60 56 . 81 Shots Fired 285 | 50 92 106 16 . 21 Gun 183 | 50 92 24 14 . 3 Cannon 81 | . . 79 2 . . Launcher 14 | . . 3 . . 11 Special 7 | . . . . . 7 Kinetic 248 | 50 81 103 14 . . Thermal 14 | . 11 . . . 3 Explosive 21 | . . 3 . . 18 Electromagnetic 2 | . . . 2 . . Robot Hit Streak 17 | 17 14 8 8 . 8 Robot Miss Streak 7 | 5 7 3 1 . 2 Penetration Max . | . . . . . . Secondary Targets 4 | . 2 . 2 . . Max Gunslinging Chain 1 | . 1 . 1 . . Shots Hit Robots 221 | 36 70 86 17 . 12 Core Hits 123 | 22 24 42 8 . 27 Critical Kills 4 | . 1 3 . . . Critical Parts Destroyed 5 | . 1 3 1 . . Critical Strikes 15 | . 2 9 1 . 3 Destroy 2 | . 1 1 . . . Blast 3 | . . 3 . . . Smash 7 | . 1 5 1 . . Sever 3 | . . . . . 3 Melee Attacks 85 | . 18 37 26 1 3 Impact 78 | . 15 37 26 . . Slashing 4 | . . . . 1 3 Piercing . | . . . . . . Sneak Attacks 8 | . 4 4 . . . Combat Hostiles . | . . . . . . Follow-up Attacks . | . . . . . . Damage Inflicted 6198 | 382 1078 2087 361 . 2290 Guns 1454 | 382 678 216 132 . 46 Cannons 899 | . . 861 38 . . Explosions 2352 | . . 325 . . 2027 Melee 1276 | . 400 685 191 . . Ramming . | . . . . . . Kinetic 2243 | 382 652 1077 132 . . Thermal 72 | . 26 . . . 46 Explosive 2352 | . . 325 . . 2027 Electromagnetic 38 | . . . 38 . . Impact 1276 | . 400 685 191 . . Slashing 217 | . . . . . 217 Piercing . | . . . . . . Highest Corruption 3 | . 3 . . . . Average Corruption 2 | . 2 . . . . Corruption Purged . | . . . . . . Corruption Blocked . | . . . . . . Effects 10 | . 10 . . . . Matter Fused 1 | . 1 . . . . Heat Flow Errors 6 | . 6 . . . . Energy Discharges 1 | . 1 . . . . Data Loss (minor) 1 | . 1 . . . . Data Loss (major) 1 | . 1 . . . . Overload Shots . | . . . . . . Overflow Damage 390 | . 74 256 41 . 19 Projectiles 5 | . . 5 . . . Explosions 53 | . . 34 . . 19 Melee 332 | . 74 217 41 . . Knockbacks 13 | . 1 12 . . . Impact 3 | . 1 2 . . . Kinetic 7 | . . 7 . . . Secondary 3 | . . 3 . . . Self-Inflicted Damage 12 | . . 12 . . . Shots 1 | . . 1 . . . Rammed . | . . . . . . Targets Rammed . | . . . . . . Kicked . | . . . . . . Crushed . | . . . . . . Highest Temperature 275 | . 275 27 44 . 81 Average Temperature 54 | . 77 8 14 . 43 Received Heat Transfer 883 | . 252 339 121 . 171 Effects 2 | . 2 . . . . Interference 2 | . 2 . . . . Siege Activations . | . . . . . . Martial Activations . | . . . . . . Shielding Activations . | . . . . . . Robots Disrupted . | . . . . . . Combat Hostiles . | . . . . . . Robots Corrupted 9 | . 1 7 1 . . Combat Hostiles 5 | . . 4 1 . . Parts Fried 10 | . 1 9 . . . Impact Corruptions 20 | . 5 13 2 . . Robots Melted . | . . . . . . Combat Hostiles . | . . . . . . Parts Melted . | . . . . . . Heat Transferred 148 | . 74 . . . 74 Parts Sabotaged . | . . . . . . Parts Stolen . | . . . . . . Parts Stripped . | . . . . . . Power Chain Reactions . | . . . . . . Alert | -11 -10 -9 -9 -7 -6 ------- Run | Yrd Mat Mat Min Zio Pro Maximum Alert Level 1 | . . 1 . . . Low Security (%) 82 | 100 100 55 100 . . Level 1 17 | . . 44 . . . Level 2 . | . . . . . . Level 3 . | . . . . . . Level 4 . | . . . . . . Level 5 . | . . . . . . High Security . | . . . . . . Max Security . | . . . . . . Peak Influence 272 | 10 97 272 88 . . Initial 88 | . 3 33 88 . . Average 70 | 1 29 136 43 . . Influence Increases 1722 | 70 367 742 106 . 437 Destroy 0b10 Robot/C 1180 | . 260 540 80 . 300 Destroy 0b10 Robot/NC 170 | 70 30 65 . . 5 Destroy Leader 184 | . 54 100 20 . 10 Allied During Kill 128 | . . . 6 . 122 Successful Hack 9 | . 7 2 . . . Disable Machine 15 | . . 15 . . . Destroy Structure 21 | . 1 20 . . . Lose Combat Pursuer 15 | . 15 . . . . Influence Decreases 1475 | 65 293 593 334 . 190 Entered New Map 188 | . 2 46 140 . . Time Decay 1107 | 65 271 477 184 . 110 Lost Part 120 | . 20 70 10 . 20 Lost Ally 60 | . . . . . 60 Squads Dispatched 2 | . 1 1 . . . Investigation 1 | . 1 . . . . Extermination . | . . . . . . Reinforcement 1 | . . 1 . . . Assault . | . . . . . . Garrison . | . . . . . . Intercept . | . . . . . . Searches Triggered . | . . . . . . Construction Impeded . | . . . . . . Haulers Reinforced . | . . . . . . Active Scanning Responses . | . . . . . . Cargo Convoy Interrupts . | . . . . . . Stealth | -11 -10 -9 -9 -7 -6 --------- Run | Yrd Mat Mat Min Zio Pro Distress Signals 12 | . 1 1 . . 10 Communications Jammed . | . . . . . . Distress Signals . | . . . . . . Times Spotted 95 | . 28 39 9 . 19 Peak Tracking Total 9 | . 6 4 3 . 9 Tactical Retreats 1 | . 1 . . . . Traps | -11 -10 -9 -9 -7 -6 ------- Run | Yrd Mat Mat Min Zio Pro Traps Triggered 3 | . 3 . . . . Indirectly . | . . . . . . Trap Hack Attempts . | . . . . . . Triggered . | . . . . . . Disarmed . | . . . . . . Reprogrammed . | . . . . . . Reused . | . . . . . . Traps Extracted . | . . . . . . Installed . | . . . . . . Triggered . | . . . . . . Machines | -11 -10 -9 -9 -7 -6 ---------- Run | Yrd Mat Mat Min Zio Pro Machines Disabled 2 | . . 1 . . 1 Max in Single Turn 1 | . . 1 . . 1 Machines Repaired . | . . . . . . Machines Dismantled . | . . . . . . Machines Sabotaged . | . . . . . . Overloaded Fab Kills . | . . . . . . Hacking | -11 -10 -9 -9 -7 -6 --------- Run | Yrd Mat Mat Min Zio Pro Machines Accessed 7 | . 5 1 . . 1 Terminals 5 | . 5 . . . . Fabricators . | . . . . . . Repair Stations . | . . . . . . Recycling Units . | . . . . . . Scanalyzers 1 | . . 1 . . . Garrison Access . | . . . . . . Total Hacks 13 | . 11 1 . . 1 Successful 5 | . 3 1 . . 1 Failed 8 | . 8 . . . . Catastrophic . | . . . . . . Database Lockouts . | . . . . . . Manual 3 | . 3 . . . . Terminals 11 | . 11 . . . . Fabricators . | . . . . . . Repair Stations . | . . . . . . Recycling Units . | . . . . . . Scanalyzers 1 | . . 1 . . . Garrison Access . | . . . . . . Terminal Hacks 4 | . 3 . . . 1 Record 1 | . . . . . 1 Locate Traps 2 | . 2 . . . . Registered Components 1 | . 1 . . . . Fabricator Hacks . | . . . . . . Repair Station Hacks . | . . . . . . Recycling Unit Hacks . | . . . . . . Scanalyzer 1 | . . 1 . . . Retrieve Study 1 | . . 1 . . . Garrison Access Hacks . | . . . . . . Unauthorized Hacks . | . . . . . . Terminals . | . . . . . . Fabricators . | . . . . . . Repair Stations . | . . . . . . Recycling Units . | . . . . . . Scanalyzers . | . . . . . . Garrison Access . | . . . . . . Data Cores Recovered 2 | . 1 1 . . . Used 1 | . 1 . . . . Hacking Detections 5 | . 5 . . . . Full Trace Events 1 | . 1 . . . . Feedback Events . | . . . . . . Feedback Blocked . | . . . . . . Robot Schematics Acquired 4 | . . . . 4 . Robots Built . | . . . . . . Authchips . | . . . . . . Time . | . . . . . . Total Robot Build Rating . | . . . . . . Part Schematics Acquired 15 | . . . . 15 . Parts Built . | . . . . . . Authchips . | . . . . . . Time . | . . . . . . Total Part Build Rating . | . . . . . . Part Studies Acquired 1 | . . 1 . . . Parts Repaired . | . . . . . . Time . | . . . . . . Parts Recycled . | . . . . . . Recycled Matter . | . . . . . . Retrieved Matter . | . . . . . . Retrieved Components . | . . . . . . Parts Scanalyzed . | . . . . . . Part Schematics Acquired . | . . . . . . Parts Damaged . | . . . . . . Bothacking | -11 -10 -9 -9 -7 -6 ------------ Run | Yrd Mat Mat Min Zio Pro Used RIF Installer . | . . . . . . Robots Hacked 1 | . 1 . . . . Non-combat . | . . . . . . Combat 1 | . 1 . . . . Robot Hacks Applied 1 | . 1 . . . . parse_system 1 | . 1 . . . . Relay Couplers Released . | . . . . . . Fabnet Peak Effective % . | . . . . . . Robots Rewired . | . . . . . . Allies Hacked . | . . . . . . Hacks Repelled . | . . . . . . Allies | -11 -10 -9 -9 -7 -6 -------- Run | Yrd Mat Mat Min Zio Pro Total Allies 6 | . . . 2 4 . Largest Group 4 | . . . 2 4 4 Highest-Rated Group 153 | . . . 43 153 153 Highest-Rated Ally 39 | . . . 31 39 39 Total Orders . | . . . . . . Ally Attacks 46 | . . . 4 . 42 Total Damage 1070 | . . . 42 . 1028 Kills 9 | . . . 1 . 8 Allies Corrupted . | . . . . . . Allies Melted . | . . . . . . Intel | -11 -10 -9 -9 -7 -6 ------- Run | Yrd Mat Mat Min Zio Pro Active Infowar (turns) 668 | 230 314 124 . . . Terrain 241 | . 241 . . . . Seismic 427 | 230 73 124 . . . Robot Analysis Total . | . . . . . . Derelict Logs Recovered 2 | . . . . 1 1 Drone Launches . | . . . . . . Drone Recoveries . | . . . . . . Exploration | -11 -10 -9 -9 -7 -6 ------------- Run | Yrd Mat Mat Min Zio Pro Turns Passed 4948 | 331 1203 1267 398 1161 588 Spaces Moved 2959 | 134 713 612 231 835 434 Core . | . . . . . . Treads . | . . . . . . Legs 856 | 134 713 9 . . . Wheels 2103 | . . 603 231 835 434 Hover . | . . . . . . Flight . | . . . . . . Fastest Speed 90 | 120 120 90 110 110 110 Average Speed 121 | 120 120 150 110 110 110 Slowest Speed 195 | 120 120 195 110 110 110 Overloaded Moves . | . . . . . . Propulsion Burnouts . | . . . . . . Robots Hopped . | . . . . . . Potential Cave-ins . | . . . . . . Cave-ins Triggered . | . . . . . . Exploration Rate (%) 54 | 6 90 54 41 85 50 Regions Visited 5 Branch Regions 3 Pre-discovered Areas . | . . . . . . Known Exits Taken . | . . . . . . Unknown Exits Taken 5 | 1 1 1 1 1 . Scrap Searched 3 | . . . . 1 2 Spaces Dug 3 | . 1 . . . 2 Terrain Destroyed 122 | . 1 15 . . 106 Melee 3 | . 1 . . . 2 Projectile 2 | . . . . . 2 AOE 117 | . . 15 . . 102 Terrain Rammed . | . . . . . . Walls Destroyed . | . . . . . . Machines Disabled . | . . . . . . Actions | -11 -10 -9 -9 -7 -6 --------- Run | Yrd Mat Mat Min Zio Pro Total 3901 | 259 949 782 313 1078 520 Wait 568 | 93 140 21 42 228 44 Move 2954 | 133 712 611 230 834 434 Hop . | . . . . . . Pick Up 47 | 4 8 26 1 7 1 Fast Attach 9 | 1 3 5 . . . Attach 11 | . . 7 1 . 3 Detach . | . . . . . . Swap 30 | 1 10 11 3 2 3 Drop 28 | 2 12 6 1 6 1 Fire 159 | 25 46 58 9 . 21 Melee 85 | . 18 37 26 1 3 Ram . | . . . . . . Kick . | . . . . . . Crush . | . . . . . . Escape Stasis . | . . . . . . Rewire 10 | . . . . . 10 Trap . | . . . . . . Miscellaneous . | . . . . . . Route ------- -11/Scrapyard -10/Materials (discovered 4 exits: *Mat x2 / [*Min x2]) -9/Materials (discovered 3 exits: [*Mat x2] / [*Min]) -9/Mines -7/Zion -6/Proximity Caves History --------- Turn | Location | Event 4 | -11/Scrapyard | Discovered new exit (range 3) 332 | -11/Scrapyard | Entered Materials 347 | -10/Materials | Build established: Mutant 432 | -10/Materials | Discovered new exit (range 8) 589 | -10/Materials | Discovered new exit (range 16) 908 | -10/Materials | Discovered new exit (range 12) 1446 | -10/Materials | Core integrity fell below 50% 1446 | -10/Materials | Discovered new exit (range 14) 1535 | -10/Materials | Entered another Materials area 1535 | -9/Materials | Evolved 2 slots: Propulsion x1, Utility x1 1743 | -9/Materials | Discovered new exit (range 6) 1860 | -9/Materials | Lost 4 parts (1p2n1u) 1984 | -9/Materials | Discovered new exit (range 16) 2275 | -9/Materials | Destroyed 8 combat bots 2316 | -9/Materials | Discovered new exit (range 16) 2802 | -9/Materials | Entered Mines 3055 | -9/Mines | Excavation squad dispatched 3055 | -9/Mines | A large section of the Mines collapsed 3120 | -9/Mines | Core integrity fell below 50% 3186 | -9/Mines | A Derelict revealed a hidden shortcut to a safe place 3200 | -9/Mines | Entered Zion 3200 | -7/Zion | Accompanied by 2 allies 3242 | -7/Zion | Discovered new exit (range 9) 3250 | -7/Zion | Led the pair of lost Derelicts to a safe place 3398 | -7/Zion | Learned Factory stockpile data 3637 | -7/Zion | Found Prototype Special Weapon 3637 | -7/Zion | Identified RU-N14's Throwing Claymores 3640 | -7/Zion | Found RU-N14's Throwing Claymores 3643 | -7/Zion | Found RU-N14's Throwing Claymores 3907 | -7/Zion | Met Imprinter 3929 | -7/Zion | Imprinted 3932 | -7/Zion | Declared Zion's savior 4361 | -7/Zion | Entered Proximity Caves 4361 | -6/Proximity Caves | Accompanied by 4 allies 4481 | -6/Proximity Caves | Found Alien Artifact 4482 | -6/Proximity Caves | Identified Dimensional Node Initializer 4482 | -6/Proximity Caves | Initialized slip node 4698 | -6/Proximity Caves | Attracted the attention of an 0b10 checkpoint 4708 | -6/Proximity Caves | Core integrity fell below 20% 4949 | -6/Proximity Caves | Destroyed by D-53 Grenadier with Mini Grenade Launcher Last Messages --------------- 04788_ RU-N14's Throwing Claymores expended. 04788_ G-50 Soldier destroyed. 04790_ Identified Hvy. Beamcaster. 04791_ Destroyed Carbon-fiber Leg. 04793_ Destroyed Hvy. Laser. 04795_ Lgt. Angular Momentum Engine fries itself beyond repair. 04807_ Acquired 10 matter. 04809_ The unstable cave ceiling collapses. 04918_ D-53 Grenadier suffers critical hit (Burn). 04918_ D-53 Grenadier destroyed. 04918_ Target Drone destroyed. 04928_ I-36 Angel sends out distress signal. 04929_ Lgt. Deuterium Engine self-destruct mechanism malfunctions. 04930_ Cmb. Airjet fries itself beyond repair. 04936_ WC-NSK(M) destroyed. 04939_ 9A-TWA(M) destroyed. 04940_ Chain reaction triggered in Lgt. Deuterium Engine. 04942_ D-53 Grenadier destroyed. 04943_ Arm. Wheel+ destroyed. 04947_ VW-NWV(M) destroyed. Map ----- +----------------------------------------------------+ | ??### #?????????????????????????????????????????? | | ##### ####??????????????????????????????????????? | | #??????????????????????????????????????? | | ##### #??????????????????????????????????????? | | ????## # #??????????????????????????????????????? | | ?????## ##?????????????????????????????????????? | | ####??## # #?????????????????????????????????????? | | # ##?## #?????????????????????????????????????? | | # ### # ##?????????????????????????????????????? | | ###??????????????????????????????????????? | | ## ##?????????????? ?????????????????????? | | ### ##????????????? ???????????????????? | | #?# ##???????????# ????????????????? | | #?# #????????????# ??????????????? | | #?# #????????????# ????????????? | | #?# #????????????# ????????????? | | #?# #????????????# ???????????? | | #?# ####????###### ???????????? | | ### ##???# < ??????????? | | ## ##### ??????????? | | # ??????????? | | #### *% ?????????? | | ???# d ?????????? | | ???# ????????? | | #??# ????????? | | ######## M @ ????????? | | #?# # # ????????? | | #??##"### % ????????? | | #?## ## = ?????????? | | #??### ?????????? | | ????# % ??????????? | | ?????# ??????????? | | ?????# ??????????? | | ## ?????# ???????????? | | #? ??????# ???????????? | | ??? ??????################## ????????????? | | ???? ????????????????????????? ????????????? | | ????????????????????????????????####?????????????? | | ?????????????????????????????????????????????????? | | ?????????????????????????????????????????????????? | | ?????????????????????????????????????????????????? | | ?????????????????????????????????????????????????? | | ?????????????????????????????????????????????????? | | ?????????????????????????????????????????????????? | | ?????????????????????????????????????????????????? | | ?????????????????????????????????????????????????? | | ?????????????????????????????????????????????????? | | ?????????????????????????????????????????????????? | | ?????????????????????????????????????????????????? | | ?????????????????????????????????????????????????? | +----------------------------------------------------+ Best States ------------- Heat Dissipation 28 Energy Generation 14 Energy Capacity 280 Matter Stores 300 Matter Capacity 400 Sight Range 16 Terrain Scan Range 16 Terrain Scan Density 10 Armor Coverage 150 Core Shielding 20 Utility Shielding 33 Evasion (%) 55 Item Schematics ----------------- Coolant Injector | -7/Zion | Archive Hvy. Pick | -7/Zion | Archive Recalibrator | -7/Zion | Archive Imp. Medium Treads | -7/Zion | Archive Mass Driver | -7/Zion | Archive Imp. EM Pulse Cannon | -7/Zion | Archive Drone Bay | -7/Zion | Archive Transmission Jammer | -7/Zion | Archive Magnetic Acceleration Cannon | -7/Zion | Archive Corruption Screen | -7/Zion | Archive Adv. Terrain Scanner | -7/Zion | Archive Gatling Laser | -7/Zion | Archive Hvy. Phase Cannon | -7/Zion | Archive Gauss Cannon | -7/Zion | Archive Fusion Compressor | -7/Zion | Archive Robot Schematics ------------------ A-02 Transporter | -7/Zion | Archive L-41 Fighter | -7/Zion | Archive Y-45 Defender | -7/Zion | Archive Y-72 Warden | -7/Zion | Archive Fabricated ------------ Nothing Repaired ---------- Nothing Studied --------- Arm. Wheel | -9/Materials | Hacked Alien Tech Used ----------------- Dimensional Node Initializer Achievements -------------- None Challenges ------------ None Game ------ Seed MagneticDisintegrationMatter Manual? 0 Play Time 00:50:18 Cumulative 166.3 hours Start 2026.01.15 @ 16:29:52 End 2026.01.15 @ 18:23:10 Sessions 3 Manual Loads 0 Difficulty Rogue Special Mode None Game No. 279 Rogue 275 Adventurer 0 Explorer 4 Win Type - Total 0 Types 0/0/0/0/0/0/0/0/0/0 Lore% 22 Gallery% 42 Achievement% 28 Wizard Run 0 Options --------- Layout 1 ASCII 0 Keyboard 1 Movement Arrows Keybinds 0 Fullscreen 1 Font 32/SmallcapsGlow Map View 130x35 Zoom Use 0% Tactical HUD 1 Map Filters NONE Filters NONE Steam 1 RUN: 0a402d98-ae6d-447a-b92f-52159c0bb044